fUSD/lending_fUSD_20240203
["ID","MTS","AMOUNT","RATE_DAILY","PERIOD"]
[313237563,1706992242989,-190.53686143,0.00022622,2]
[313237565,1706992242998,-370.32211374,0.00022622,2]
[313237567,1706992243007,-246.97993419,0.00022622,2]
[313237569,1706992243016,-220.81445407,0.00022622,2]
[313237571,1706992243025,-286.90300861,0.00022622,2]
[313237572,1706992243033,-476.72774164,0.00022622,2]
[313237574,1706992243042,-1145.64112519,0.00022622,2]
[313237577,1706992243060,-4622.60225803,0.00022622,2]
[313237579,1706992243072,-214.19078987,0.00022622,2]
[313237581,1706992243081,-5851.71164215,0.00022622,2]
[313237583,1706992243090,-362.38050012,0.00022622,2]
[313237585,1706992243100,-162.77421475,0.00022622,2]
[313237587,1706992243109,-1230.05731595,0.00022622,2]
[313237589,1706992243118,-172.45863879,0.00022622,2]
[313237591,1706992243129,-158.79636252,0.00022622,2]
[313237593,1706992243138,-155.11976048,0.00022622,2]
[313237594,1706992243148,-236.03866081,0.00022622,2]
[313237596,1706992243157,-208.40334228,0.00022622,2]
[313237598,1706992243167,-758.67223339,0.00022622,2]
[313237600,1706992243177,-208.48621696,0.00022622,2]
[313237602,1706992243186,-384.65624658,0.00022622,2]
[313237604,1706992243196,-501.39378659,0.00022622,2]
[313237606,1706992243205,-338.11095919,0.00022622,2]
[313237608,1706992243214,-3409.31715413,0.00022623,2]
[313237610,1706992243224,-228.68492109,0.00022623,2]
[313237613,1706992243234,-7796.70726592,0.00022623,2]
[313237616,1706992243243,-1795.11,0.00022623,2]
[313237618,1706992243252,-165.3588392,0.00022624,2]
[313237620,1706992243261,-35492.01474577,0.00022624,2]
[313237622,1706992243271,-4007.68682313,0.00022624,2]
[313237624,1706992243280,-5152.29718832,0.00022629,2]
[313237627,1706992243289,-14612.94244364,0.00022629,2]
[313237630,1706992243299,-165.3588392,0.00022649,2]
[313237633,1706992243308,-165.3588392,0.00022674,2]
[313237636,1706992243318,-165.3588392,0.00022699,2]
[313237639,1706992243327,-1000.0,0.000227,2]
[313237642,1706992243337,-184.81576064,0.000227,2]
[313237644,1706992243346,-2500.0,0.000227,2]
[313237646,1706992243355,-1000.0,0.000227,2]
[313237649,1706992243364,-1000.0,0.00022712,2]
[313237652,1706992243374,-4697.46252895,0.00022716,2]
[313237654,1706992243383,-165.3588392,0.00022724,2]
[313237657,1706992243392,-165.3588392,0.00022749,2]
[313237660,1706992243402,-229.57212479,0.00022768,2]
[313237663,1706992243412,-280.79430241,0.00022768,2]
[313237665,1706992243424,-155.73119273,0.00022768,2]
[313237668,1706992243433,-2000.28955194,0.00022768,2]
[313237671,1706992243443,-165.3588392,0.00022774,2]
[313237673,1706992243452,-165.3588392,0.000228,2]
[313237675,1706992243463,-155.93305506,0.000228,2]
[313237677,1706992243472,-196585.56692868,0.000228,2]
[313237679,1706992243486,-1486.16000651,0.000228,2]
[313237680,1706992243498,-8183.39425449,0.000228,2]
[313237682,1706992243510,-16814.39919535,0.000228,2]
[313237684,1706992243521,-3316.66484148,0.000228,2]
[313237837,1706992245934,-51318.61182868,0.000228,2]
[313237838,1706992245946,-500.0,0.00022816,2]
[313237839,1706992245956,-800.0,0.00022816,2]
[313237840,1706992245965,-165.3588392,0.00022825,2]
[313237841,1706992245974,-165.3588392,0.0002285,2]
[313237842,1706992245983,-791.1862571,0.00022856,2]
[313237843,1706992245993,-165.3588392,0.00022875,2]
[313237844,1706992246004,-800.0,0.00022877,2]
[313237845,1706992246013,-800.0,0.00022877,2]
[313237846,1706992246024,-1000.0,0.00022895,2]
[313237847,1706992246034,-500.0,0.00022897,2]
[313237848,1706992246044,-153.51076582,0.000229,2]
[313237849,1706992246053,-5000.0,0.000229,2]
[313237850,1706992246063,-2396.00607048,0.000229,2]
[313237851,1706992246072,-165.3588392,0.000229,2]
[313237852,1706992246082,-3205.72995518,0.000229,2]
[313237853,1706992246091,-314.98320434,0.000229,2]
[313237854,1706992246100,-578.19241258,0.000229,2]
[313237855,1706992246109,-22582.7110613,0.000229,2]
[313237856,1706992246119,-2504.026,0.00022967,2]
[313237857,1706992246128,-8164.866,0.00022967,2]
[313237858,1706992246137,-19822.306,0.00022967,2]
[313237859,1706992246146,-4199.767,0.00022967,2]
[313237860,1706992246156,-500.0,0.00022978,2]
[313237861,1706992246165,-153.23,0.00022988,2]
[313237862,1706992246176,-595.94007508,0.00022998,2]
[313237863,1706992246187,-1941.250874,0.00022998,2]
[313237864,1706992246198,-226.18215803,0.00022999,2]
[313237865,1706992246208,-175.53726548,0.00022999,2]
[313237866,1706992246218,-34056.08486628,0.00023,3]
[313237867,1706992246248,-1031.36,0.00023,3]
[313237869,1706992246264,-1029.7146752,0.00023,3]
[313237884,1706992282071,205.34,0.00022082,2]
[313237885,1706992307996,2229.5496,0.0002244,2]
[313237886,1706992312236,333.23809991,0.00022999,10]
[313237887,1706992394369,603.29,0.00021868,2]
[313237888,1706992436998,163.42827114,0.00022422,2]
[313237889,1706992443030,1203.54662473,0.0002249,2]
[313237890,1706992452649,385.76,0.0002189,2]
[313237891,1706992485519,250.0,0.0002189,2]
[313237892,1706992515727,250.0,0.00021918,2]
[313237893,1706992530745,166.62,0.00019968,2]
[313237894,1706992640039,200.0,0.00021845,2]
[313237895,1706992705766,765.92152862,0.00021845,2]
[313237896,1706992751605,186.59,0.00021849,2]
[313237897,1706992828956,517.36,0.00021866,2]
[313237898,1706992842996,156.09,0.0002203,2]
[313237899,1706992845213,350.3,0.00022,2]
[313237900,1706992883491,321.46,0.00021879,2]
[313237901,1706992928233,296.47071973,0.000225,2]
[313237902,1706992928369,2314.46229003,0.000225,2]
[313237903,1706992964025,166.62,0.0001995,2]
[313237904,1706992977764,250.0,0.00021918,2]
[313237905,1706993013792,206.0,0.00021951,2]
[313237906,1706993033126,250.0,0.00021817,2]
[313237907,1706993103583,150.0,0.00022493,2]
[313237908,1706993129373,15000.0,0.00021,2]
[313237909,1706993159790,20000.0,0.00022,2]
[313237910,1706993176285,10000.0,0.000224,5]
[313237911,1706993271878,586.11,0.00021802,2]
[313237916,1706993364662,267.88,0.00021796,2]
[313237920,1706993432114,-525.78655518,0.00022517,2]
[313237921,1706993432124,-230.26204204,0.00022517,2]
[313237922,1706993432134,-467.983423,0.0002252,2]
[313237923,1706993432143,-716.16,0.00022521,2]
[313237924,1706993432153,-714.35,0.00022521,2]
[313237925,1706993432162,-714.23,0.00022521,2]
[313237926,1706993432171,-737.56,0.00022521,2]
[313237927,1706993432181,-719.64,0.00022522,2]
[313237928,1706993432191,-712.24,0.00022522,2]
[313237929,1706993432200,-150.0,0.00022523,2]
[313237930,1706993432210,-3291.82,0.00022523,2]
[313237931,1706993432220,-713.79,0.00022523,2]
[313237932,1706993432230,-413.30542458,0.00022524,2]
[313237933,1706993432239,-499.99,0.00022524,2]
[313237934,1706993432248,-4559.28,0.00022524,2]
[313237935,1706993432258,-728.18,0.00022524,2]
[313237936,1706993432267,-715.81,0.00022525,2]
[313237937,1706993432277,-531.74,0.00022525,2]
[313237938,1706993432286,-2315.39337655,0.00022525,2]
[313237939,1706993432298,-835.81662345,0.00022525,2]
[313237940,1706993432308,-690.71,0.00022525,2]
[313237941,1706993432317,-199.66803673,0.00022525,2]
[313237942,1706993432333,-524.48196327,0.00022525,2]
[313237943,1706993432343,-148.03689793,0.00022525,2]
[313237944,1706993432357,-574.84310207,0.00022525,2]
[313237945,1706993432400,-167.0,0.00022542,2]
[313237946,1706993432410,-1725.0,0.00022588,2]
[313237947,1706993432420,-3049.18085693,0.00022629,2]
[313237948,1706993432430,-2851.37604101,0.00022629,2]
[313237949,1706993432448,-580.09952,0.00022629,2]
[313237951,1706993432474,-412.74688738,0.00022629,2]
[313237953,1706993438113,-2731.60165125,0.00022629,2]
[313237954,1706993438123,-1000.0,0.000227,2]
[313237955,1706993438132,-150.0,0.00022756,2]
[313237956,1706993438142,-313.78523545,0.00022765,2]
[313237957,1706993438152,-282.04190656,0.00022765,2]
[313237958,1706993438161,-150.0,0.00022771,2]
[313237959,1706993438170,-155.0,0.000228,2]
[313237960,1706993438180,-800.0,0.00022816,2]
[313237961,1706993438189,-150.0,0.00022839,2]
[313237962,1706993438198,-150.0,0.0002284,2]
[313237963,1706993438207,-185.01090773,0.00022856,2]
[313237964,1706993438217,-1000.0,0.00022886,2]
[313237965,1706993438227,-11250.9757439,0.00022887,2]
[313237966,1706993438236,-170.6034,0.00022893,2]
[313237967,1706993438245,-2541.4546,0.00022893,2]
[313237968,1706993438254,-4516.04820351,0.00022897,2]
[313237969,1706993438264,-226.08319404,0.00022898,2]
[313237970,1706993438273,-236.25268828,0.00022898,2]
[313237971,1706993438282,-166.07458672,0.00022899,2]
[313237972,1706993438291,-649.99607988,0.000229,2]
[313237973,1706993438302,-296.6922,0.000229,2]
[313237974,1706993438313,-5000.0,0.000229,2]
[313237975,1706993438322,-153.53617272,0.000229,2]
[313237976,1706993438332,-1071.79409674,0.000229,2]
[313237977,1706993438341,-1736.97369844,0.000229,2]
[313237978,1706993438352,-187.55259939,0.000229,2]
[313237979,1706993438363,-3133.01805933,0.000229,2]
[313237980,1706993438374,-180.0,0.00022925,2]
[313237981,1706993438383,-800.0,0.00022959,2]
[313237982,1706993438399,-150.0,0.00022976,2]
[313237983,1706993438408,-500.0,0.00022978,2]
[313237984,1706993438418,-193.88407955,0.0002299,2]
[313237985,1706993438427,-11791.62089651,0.00022993,2]
[313237986,1706993438439,-5248.9,0.00022993,2]
[313237989,1706993438451,-1699.13,0.00022993,2]
[313237990,1706993438466,-1009.30076124,0.00022993,2]
[313237991,1706993438479,-908.60275328,0.00022993,2]
[313237992,1706993438490,-1335.55499613,0.00022993,2]
[313237993,1706993438501,-5568.29692822,0.00022993,2]
[313237994,1706993438515,-4525.29631233,0.00022993,2]
[313238014,1706993438713,-702.52217456,0.00022993,2]
[313238017,1706993438725,-360.0,0.00022993,2]
[313238019,1706993438736,-2278.8,0.00022993,2]
[313238021,1706993438748,-1264.65426,0.00022993,2]
[313238023,1706993438759,-403.70016999,0.00022993,2]
[313238026,1706993438772,-12914.67608279,0.00022993,2]
[313238027,1706993438786,-46422.89056081,0.00022993,2]
[313238028,1706993438795,-1260.34340966,0.00022994,4]
[313238029,1706993438805,-177.67713643,0.00022995,2]
[313238030,1706993438815,-474.00032443,0.00022995,2]
[313238031,1706993438824,-155.0,0.00022995,2]
[313238032,1706993438833,-371.2069388,0.00022995,2]
[313238033,1706993438843,-404.36626704,0.00022995,2]
[313238034,1706993438853,-10620.23333302,0.00022995,2]
[313238035,1706993438863,-162.48097775,0.00022995,2]
[313238036,1706993438872,-379.30841891,0.00022995,2]
[313238037,1706993438882,-1073.8119729,0.00022995,2]
[313238038,1706993438891,-4108.15873278,0.00022995,2]
[313238039,1706993438900,-502.63907881,0.00022995,2]
[313238040,1706993438909,-1043.0192466,0.00022995,2]
[313238041,1706993438918,-1838.12174415,0.00022995,2]
[313238042,1706993438927,-465.03674395,0.00022995,2]
[313238043,1706993438936,-2623.23288806,0.00022995,2]
[313238044,1706993438947,-4325.34904083,0.00022995,2]
[313238045,1706993438956,-4695.32009176,0.00022995,2]
[313238046,1706993438965,-387.97709514,0.00022995,2]
[313238047,1706993438974,-289.73260612,0.00022995,2]
[313238048,1706993438983,-469.08257724,0.00022996,2]
[313238049,1706993438992,-215.26109869,0.00022996,2]
[313238050,1706993439002,-3148.06260981,0.00022996,2]
[313238051,1706993439011,-290.86073317,0.00022996,2]
[313238052,1706993439023,-759.85100312,0.00022996,2]
[313238053,1706993439033,-475.08618262,0.00022996,2]
[313238054,1706993439042,-155.0,0.00022996,2]
[313238055,1706993439051,-544.07186673,0.00022996,2]
[313238056,1706993439060,-517.03756338,0.00022996,2]
[313238057,1706993439069,-97398.15257712,0.00022997,2]
[313238058,1706993439081,-32342.48179997,0.00022997,2]
[313238059,1706993439092,-553.2695,0.00022997,2]
[313238060,1706993439103,-24415.68133648,0.00022998,2]
[313238061,1706993439113,-4605.57770433,0.00022998,2]
[313238062,1706993439122,-3059.27150435,0.00022998,2]
[313238063,1706993439131,-301.77033695,0.00022998,2]
[313238064,1706993439140,-768.55606507,0.00022998,2]
[313238065,1706993439149,-156.44943752,0.00022998,2]
[313238066,1706993439159,-1619.6224822,0.00022998,2]
[313238067,1706993439168,-22419.2641817,0.00022998,2]
[313238068,1706993439177,-1034.475171,0.00022998,2]
[313238069,1706993439186,-3307.99676522,0.00022999,2]
[313238070,1706993439196,-531.0,0.00023,2]
[313238071,1706993439205,-19887.66596599,0.00023,3]
[313238072,1706993439214,-21209.46629076,0.00023,2]
[313238073,1706993439226,-29337.25202624,0.00023,2]
[313238074,1706993439237,-106618.4190597,0.00023,2]
[313238075,1706993439253,-1512.623474,0.00023,2]
[313238076,1706993439264,-5237.33729754,0.00023,2]
[313238077,1706993439276,-1764.92992517,0.00023,2]
[313238078,1706993439288,-298.62800448,0.00023,2]
[313238079,1706993439300,-7019.90363144,0.00023,2]
[313238110,1706993441487,-567.103008,0.00022817,2]
[313238111,1706993441501,-932.896992,0.00022817,2]
[313238112,1706993441511,-21895.0652188,0.00023,2]
[313238113,1706993441525,-4182.00000001,0.00023,2]
[313238150,1706993443274,-6196.43098482,0.00023,2]
[313238152,1706993443285,-13265.47020606,0.00023,2]
[313238155,1706993443297,-1836.23651837,0.00023,2]
[313238159,1706993443326,-370788.45157415,0.00023,2]
[313238227,1706993446218,-150.0,0.00022762,2]
[313238228,1706993446227,-150.0,0.00022776,2]
[313238229,1706993446237,-150.0,0.00022779,2]
[313238230,1706993446246,-140.63257193,0.0002278,2]
[313238231,1706993446428,-9.36742807,0.0002278,2]
[313238232,1706993446438,-150.0,0.00022807,2]
[313238233,1706993446447,-150.0,0.00022815,2]
[313238234,1706993446456,-150.0,0.00022827,2]
[313238235,1706993446466,-150.0,0.00022861,2]
[313238236,1706993446475,-150.0,0.00022862,2]
[313238238,1706993446484,-150.0,0.00022883,2]
[313238239,1706993446494,-150.0,0.00022888,2]
[313238241,1706993446502,-150.0,0.00022897,2]
[313238242,1706993446511,-150.0,0.00022897,2]
[313238243,1706993446520,-150.0,0.00022945,2]
[313238244,1706993446530,-150.0,0.00022969,2]
[313238245,1706993446539,-150.0,0.00022988,2]
[313238247,1706993446549,-150.0,0.00022989,2]
[313238248,1706993446558,-150.0,0.00022992,2]
[313238249,1706993446567,-237.54565382,0.00022999,2]
[313238250,1706993446576,-7697.50908309,0.00023,2]
[313238251,1706993446588,-13301.59701894,0.00023,2]
[313238253,1706993526851,250.0,0.00021918,2]
[313238254,1706993548892,200.0,0.000226,8]
[313238255,1706993550980,500.0,0.000227,8]
[313238256,1706993553851,700.0,0.000228,8]
[313238257,1706993555174,445.0,0.000229,8]
[313238258,1706993582635,550.0,0.00022,3]
[313238259,1706993595318,250.0,0.00021832,2]
[313238260,1706993623162,186.59,0.00021828,2]
[313238261,1706993738055,531.11,0.00021825,2]
[313238262,1706993830388,223.23,0.00021825,2]
[313238263,1706993948655,250.0,0.00021918,2]
[313238264,1706993954005,698.43245653,0.00021825,2]
[313238265,1706993971963,167.0,0.00022481,2]
[313238266,1706994090196,250.0,0.00021825,2]
[313238267,1706994184846,575.11,0.00021825,2]
[313238268,1706994243952,186.02,0.00021824,2]
[313238269,1706994381595,250.0,0.00021918,2]
[313238270,1706994410336,167.0,0.00022418,2]
[313238271,1706994453809,205.0,0.00021756,2]
[313238280,1706994598077,250.0,0.00021766,2]
[313238281,1706994621019,539.91,0.0002177,2]
[313238291,1706994632356,-712.94,0.00022524,2]
[313238292,1706994632365,-717.38,0.00022524,2]
[313238293,1706994632374,-1014.85689779,0.00022629,2]
[313238294,1706994632383,-709.92,0.00022653,2]
[313238295,1706994632392,-1000.0,0.000227,2]
[313238296,1706994632401,-1260.85274407,0.000227,2]
[313238297,1706994632410,-150.0,0.00022725,2]
[313238298,1706994632420,-150.0,0.00022726,2]
[313238299,1706994632429,-343.67,0.00022726,2]
[313238300,1706994632438,-499.99,0.00022727,2]
[313238301,1706994632447,-150.0,0.00022727,2]
[313238302,1706994632456,-150.0,0.0002273,2]
[313238303,1706994632465,-150.0,0.0002273,2]
[313238307,1706994632635,-906.8092682,0.00022731,2]
[313238311,1706994632647,-593.1907318,0.00022731,2]
[313238315,1706994632658,-27.36157075,0.00022736,2]
[313238322,1706994632682,-122.63842925,0.00022736,2]
[313238325,1706994632691,-150.0,0.00022737,2]
[313238328,1706994632700,-303.93514361,0.00022739,2]
[313238331,1706994632711,-320.84485639,0.00022739,2]
[313238334,1706994632720,-325.12,0.00022739,2]
[313238336,1706994632729,-100.45392729,0.00022741,2]
[313238340,1706994632740,-199.54607271,0.00022741,2]
[313238342,1706994632749,-150.0,0.00022743,2]
[313238344,1706994632759,-150.0,0.00022748,2]
[313238347,1706994632768,-150.0,0.00022748,2]
[313238350,1706994632777,-131.77946941,0.00022748,2]
[313238354,1706994632789,-168.22053059,0.00022748,2]
[313238357,1706994632798,-150.0,0.00022751,2]
[313238360,1706994632807,-150.0,0.00022752,2]
[313238363,1706994632816,-150.0,0.00022754,2]
[313238365,1706994632825,-150.0,0.00022754,2]
[313238368,1706994632835,-64.67946941,0.00022755,2]
[313238372,1706994632846,-85.32053059,0.00022755,2]
[313238375,1706994632856,-150.0,0.00022758,2]
[313238377,1706994632865,-66.15946941,0.0002277,2]
[313238379,1706994632876,-83.84053059,0.0002277,2]
[313238381,1706994632885,-150.0,0.0002277,2]
[313238383,1706994632894,-158.74113,0.0002277,2]
[313238385,1706994632903,-150.0,0.0002277,2]
[313238387,1706994632912,-150.0,0.00022771,2]
[313238389,1706994632921,-70.12833941,0.00022772,2]
[313238390,1706994632933,-79.87166059,0.00022772,2]
[313238391,1706994632942,-150.0,0.00022775,2]
[313238392,1706994632951,-150.0,0.00022776,2]
[313238393,1706994632961,-60.12833941,0.00022777,2]
[313238394,1706994632972,-89.87166059,0.00022777,2]
[313238395,1706994632981,-150.0,0.00022777,2]
[313238396,1706994632992,-413.12833941,0.00022778,2]
[313238397,1706994633003,-677.100004,0.00022778,2]
[313238398,1706994633015,-409.77165659,0.00022778,2]
[313238399,1706994633024,-308.80025419,0.00022779,2]
[313238400,1706994633033,-150.0,0.00022781,2]
[313238401,1706994633042,-150.0,0.00022784,2]
[313238402,1706994633052,-150.0,0.00022785,2]
[313238403,1706994633062,-150.0,0.00022788,2]
[313238404,1706994633071,-150.0,0.00022789,2]
[313238405,1706994633080,-150.0,0.00022789,2]
[313238406,1706994633089,-150.0,0.00022789,2]
[313238407,1706994633099,-150.0,0.00022791,2]
[313238408,1706994633108,-150.0,0.00022795,2]
[313238409,1706994633117,-150.0,0.00022796,2]
[313238410,1706994633127,-150.0,0.00022797,2]
[313238411,1706994633136,-1231.53604932,0.000228,2]
[313238412,1706994633147,-4778.79225068,0.000228,2]
[313238413,1706994633161,-300.0,0.000228,2]
[313238414,1706994633170,-150.0,0.000228,2]
[313238415,1706994633179,-36531.40353703,0.000228,2]
[313238416,1706994633201,-1358.5,0.000228,2]
[313238417,1706994633214,-448.59695826,0.000228,2]
[313238418,1706994633226,-1017.36783253,0.000228,2]
[313238419,1706994633241,-604.7260143,0.000228,2]
[313238420,1706994633253,-547.40747628,0.000228,2]
[313238423,1706994638248,-2180.05822911,0.000228,2]
[313238424,1706994638260,-3368.08959021,0.000228,2]
[313238425,1706994638302,-111142.13913419,0.000228,2]
[313238426,1706994638315,-426.03212721,0.000228,2]
[313238427,1706994638329,-308.15559604,0.000228,2]
[313238428,1706994638343,-1108.77575039,0.000228,2]
[313238429,1706994638516,-18149.60285445,0.000228,2]
[313238430,1706994638526,-300.0,0.00022801,2]
[313238431,1706994638536,-3974.45023189,0.00022802,2]
[313238432,1706994638546,-615.38322657,0.00022802,2]
[313238433,1706994638555,-300.0,0.00022814,2]
[313238434,1706994638565,-800.0,0.00022816,2]
[313238435,1706994638574,-150.0,0.00022825,2]
[313238436,1706994638583,-150.0,0.00022825,2]
[313238437,1706994638592,-150.0,0.00022828,2]
[313238438,1706994638601,-150.0,0.00022829,2]
[313238439,1706994638611,-150.0,0.00022833,2]
[313238440,1706994638620,-289.52666185,0.00022833,2]
[313238441,1706994638629,-150.0,0.00022839,2]
[313238442,1706994638638,-150.0,0.00022841,2]
[313238443,1706994638647,-150.0,0.00022841,2]
[313238444,1706994638657,-150.0,0.00022844,2]
[313238445,1706994638666,-150.0,0.00022852,2]
[313238446,1706994638675,-150.0,0.00022853,2]
[313238447,1706994638685,-300.0,0.00022859,2]
[313238448,1706994638694,-300.0,0.00022859,2]
[313238449,1706994638703,-150.0,0.0002286,2]
[313238450,1706994638712,-150.0,0.00022863,2]
[313238451,1706994638721,-150.0,0.00022866,2]
[313238452,1706994638730,-150.0,0.00022867,2]
[313238453,1706994638740,-150.0,0.00022869,2]
[313238454,1706994638749,-300.0,0.00022872,2]
[313238455,1706994638759,-150.0,0.00022873,2]
[313238456,1706994638768,-150.0,0.00022876,2]
[313238457,1706994638778,-150.0,0.00022879,2]
[313238458,1706994638788,-326.55765796,0.00022881,2]
[313238460,1706994638797,-150.0,0.00022881,2]
[313238462,1706994638806,-169.31838675,0.00022881,2]
[313238464,1706994638815,-150.0,0.00022886,2]
[313238466,1706994638825,-150.0,0.00022888,2]
[313238468,1706994638833,-150.0,0.0002289,2]
[313238469,1706994638843,-300.0,0.00022891,2]
[313238471,1706994638852,-193.88407956,0.00022892,2]
[313238472,1706994638862,-803.0257,0.00022893,2]
[313238473,1706994638872,-300.0,0.00022894,2]
[313238474,1706994638881,-150.0,0.00022895,2]
[313238475,1706994638890,-500.0,0.00022895,2]
[313238476,1706994638899,-150.0,0.00022897,2]
[313238477,1706994638909,-156.32569061,0.00022898,2]
[313238478,1706994638918,-532.46306892,0.00022898,2]
[313238479,1706994638928,-247.85885747,0.000229,2]
[313238480,1706994638937,-2360.81993414,0.000229,2]
[313238481,1706994638947,-305.77445266,0.000229,2]
[313238482,1706994638956,-1308.55203385,0.000229,2]
[313238483,1706994638966,-218.22518431,0.000229,2]
[313238484,1706994638975,-175.18658739,0.000229,2]
[313238485,1706994638984,-411.13676656,0.000229,2]
[313238486,1706994638994,-33445.95367734,0.000229,2]
[313238487,1706994639004,-519.99686392,0.000229,2]
[313238488,1706994639013,-237.8275,0.000229,2]
[313238489,1706994639022,-150.0,0.000229,2]
[313238490,1706994639031,-5000.0,0.000229,2]
[313238491,1706994639041,-714.52939782,0.000229,2]
[313238492,1706994639050,-209.98880288,0.000229,2]
[313238493,1706994639059,-240.29692312,0.000229,6]
[313238494,1706994639069,-183.18964413,0.000229,2]
[313238495,1706994639078,-1157.98246562,0.000229,2]
[313238496,1706994639087,-2137.15330344,0.000229,2]
[313238497,1706994639097,-168.85376514,0.000229,2]
[313238498,1706994639106,-153.12732236,0.000229,2]
[313238499,1706994639115,-19241.03511694,0.000229,2]
[313238500,1706994639124,-197.20182527,0.00022901,2]
[313238501,1706994639134,-344.10014908,0.00022901,2]
[313238502,1706994639143,-155.46704135,0.00022901,2]
[313238503,1706994639153,-12405.26589231,0.00022901,2]
[313238504,1706994639166,-150.0,0.00022901,2]
[313238505,1706994639175,-500.0,0.00022901,2]
[313238506,1706994639184,-500.0,0.00022901,2]
[313238507,1706994639193,-500.0,0.00022901,2]
[313238508,1706994639203,-561.02609957,0.00022901,2]
[313238509,1706994639213,-500.0,0.00022901,2]
[313238510,1706994639222,-500.0,0.00022901,2]
[313238511,1706994639231,-500.0,0.00022901,2]
[313238512,1706994639242,-500.0,0.00022901,2]
[313238513,1706994639253,-155.8165576,0.00022902,2]
[313238514,1706994639263,-163.48915247,0.00022902,2]
[313238515,1706994639272,-458.08995678,0.00022902,2]
[313238516,1706994639283,-155.0,0.00022902,2]
[313238517,1706994639294,-281.30437133,0.00022902,2]
[313238518,1706994639307,-155.51550435,0.00022902,2]
[313238519,1706994639317,-209.26071767,0.00022902,2]
[313238520,1706994639327,-302.15259034,0.00022902,2]
[313238521,1706994639336,-308.69448396,0.00022902,2]
[313238522,1706994639346,-156.36025162,0.00022902,2]
[313238523,1706994639355,-199.88867768,0.00022902,2]
[313238524,1706994639364,-697.25548386,0.00022902,2]
[313238525,1706994639374,-87441.16611037,0.00022902,2]
[313238526,1706994639390,-66128.09289614,0.00022902,2]
[313238527,1706994639402,-73001.45531397,0.00022902,2]
[313238528,1706994639414,-145481.59699949,0.00022902,2]
[313238529,1706994639425,-522.97068952,0.00022902,2]
[313238530,1706994639434,-245.21688013,0.00022902,2]
[313238531,1706994639443,-1160.16678694,0.00022902,2]
[313238532,1706994639454,-32303.25036713,0.00022902,2]
[313238533,1706994639468,-2776.99734937,0.00022902,2]
[313238534,1706994639481,-10921.91191884,0.00022902,2]
[313238535,1706994640840,-4582.78111635,0.00022629,2]
[313238536,1706994640852,-4073.06085333,0.00022902,2]
[313238537,1706994640864,-2791.0099997,0.00022902,2]
[313238538,1706994640876,-2206.78429854,0.00022902,2]
[313238539,1706994640888,-4910.15990042,0.00022902,2]
[313238540,1706994640900,-4008.75771428,0.00022902,2]
[313238541,1706994641142,-553.54469613,0.00022902,2]
[313238542,1706994641587,-1169.68200494,0.00022902,2]
[313238543,1706994641600,-492.6875681,0.00022902,2]
[313238544,1706994641614,-944.4,0.00022902,2]
[313238545,1706994641625,-91529.13939448,0.00022902,2]
[313238546,1706994641641,-508.90128622,0.00022902,2]
[313238547,1706994641655,-568.37173635,0.00022902,2]
[313238548,1706994641669,-689.02283833,0.00022902,2]
[313238549,1706994641680,-1128.78627854,0.00022902,2]
[313238550,1706994641695,-339.24799551,0.00022902,2]
[313238551,1706994641707,-500.0,0.00022902,2]
[313238552,1706994641718,-4177.49999999,0.00022902,2]
[313238553,1706994641731,-5560.48852739,0.00022902,2]
[313238554,1706994641744,-1036.368,0.00022902,2]
[313238555,1706994641756,-43561.97952228,0.00022902,2]
[313238556,1706994641769,-1470.445,0.00022902,2]
[313238557,1706994641782,-615.575,0.00022902,2]
[313238558,1706994641800,-637.84567228,0.00022902,2]